fUST/lending_fUST_20241120
["ID","MTS","AMOUNT","RATE_DAILY","PERIOD"]
[342669688,1732032267510,381.57,0.0001,2]
[342669693,1732032446702,-600.0,9.899e-05,2]
[342669694,1732032446722,-300.0,9.999e-05,2]
[342669695,1732032446742,-300.0,9.999e-05,2]
[342669696,1732032446767,-517.55072544,0.0001,2]
[342669697,1732032446787,-317515.44927456,0.0001,2]
[342669704,1732032623307,1000.0,9e-05,2]
[342669705,1732032623339,1000.0,9e-05,2]
[342669706,1732032623369,33000.0,9e-05,2]
[342669790,1732032638637,-893.4881083,9.801e-05,2]
[342669793,1732032638649,-3776.50390185,9.801e-05,2]
[342669795,1732032638658,-300.0,9.999e-05,2]
[342669797,1732032638667,-300.0,9.999e-05,2]
[342669799,1732032638677,-345.03381696,0.0001,2]
[342669801,1732032638686,-8956.65621199,0.0001,2]
[342669803,1732032638697,-4213.33447143,0.0001,2]
[342669805,1732032638708,-3148.48687256,0.0001,2]
[342669807,1732032638719,-5923.68276117,0.0001,2]
[342669810,1732032638744,-29624.37343587,0.0001,2]
[342669868,1732032640393,-315.646,0.0001,2]
[342669977,1732032643566,-2481.17321094,0.0001,2]
[342669980,1732032643578,-698.26888315,0.0001,2]
[342670012,1732032646518,-566.6981777,0.0001,2]
[342670013,1732032646531,-1499.997312,0.0001,2]
[342670014,1732032646620,-0.23901076,0.0001,2]
[342670015,1732032724782,35000.0,9e-05,2]
[342670017,1732033145852,606.55419764,8.914e-05,2]
[342670018,1732033204371,37367.58,0.00025999,60]
[342670019,1732033211254,3000.0,8.914e-05,2]
[342670020,1732033226545,2371.14610111,8.914e-05,2]
[342670021,1732033230270,-3000.0,9.004e-05,2]
[342670022,1732033230298,-359.1913001,9.057e-05,2]
[342670023,1732033230322,-300.0,9.529e-05,2]
[342670024,1732033230347,-300.0,9.529e-05,2]
[342670025,1732033230372,-13634.7093231,9.53e-05,2]
[342670026,1732033230396,-250.0,9.927e-05,2]
[342670027,1732033230421,-887.68695941,0.0001,2]
[342670028,1732033230444,-29424.69666307,0.0001,2]
[342670029,1732033230468,-420.0,0.00010482,2]
[342670030,1732033230492,-420.0,0.00010482,2]
[342670031,1732033230518,-587.0,0.0001153,2]
[342670032,1732033230544,-587.0,0.0001153,2]
[342670033,1732033230568,-24900.0,0.00011752,2]
[342670034,1732033230592,-823.0,0.00012683,2]
[342670035,1732033230618,-823.0,0.00012683,2]
[342670036,1732033230645,-3979.6289258,0.000129,2]
[342670037,1732033230669,-3979.62892574,0.00012995,2]
[342670038,1732033230692,-500.0,0.00013,2]
[342670039,1732033230716,-500.0,0.00013,2]
[342670040,1732033230740,-500.0,0.00013,2]
[342670041,1732033230764,-1000.0,0.00013548,2]
[342670042,1732033230789,-1000.0,0.00013548,2]
[342670043,1732033230813,-510.80354039,0.00013548,2]
[342670044,1732033230836,-201.97084766,0.00013673,2]
[342670045,1732033230860,-157.01289666,0.00013673,2]
[342670046,1732033230883,-500.0,0.00013673,2]
[342670047,1732033230906,-500.0,0.00013673,2]
[342670048,1732033230928,-500.0,0.00013673,2]
[342670049,1732033230952,-500.0,0.00013673,2]
[342670050,1732033230975,-500.0,0.00013673,2]
[342670051,1732033230998,-500.20293395,0.00013673,2]
[342670052,1732033231022,-500.0,0.00013698,2]
[342670053,1732033231049,-500.0,0.00013698,2]
[342670054,1732033231077,-466.98590707,0.00013698,2]
[342670055,1732033231101,-500.0,0.00013698,2]
[342670056,1732033231126,-500.0,0.00013698,2]
[342670057,1732033231150,-304.76130565,0.00013698,2]
[342670058,1732033231178,-500.0,0.00013698,2]
[342670059,1732033231203,-500.0,0.00013698,2]
[342670060,1732033231227,-500.0,0.00013698,2]
[342670061,1732033231249,-500.0,0.00013698,2]
[342670062,1732033231272,-500.0,0.00013698,2]
[342670063,1732033231297,-209.68165268,0.00013698,2]
[342670064,1732033231319,-460.64095719,0.00013698,2]
[342670065,1732033231343,-231.82462069,0.00013698,2]
[342670066,1732033231365,-224.92420765,0.00013698,2]
[342670067,1732033231388,-444.74862707,0.00013698,2]
[342670068,1732033231412,-500.0,0.00013698,2]
[342670069,1732033231439,-500.0,0.00013698,2]
[342670070,1732033231461,-500.0,0.00013698,2]
[342670071,1732033231486,-500.0,0.00013698,2]
[342670072,1732033231509,-500.0,0.00013698,2]
[342670073,1732033231535,-500.0,0.00013698,2]
[342670074,1732033231558,-500.0,0.00013698,2]
[342670075,1732033231584,-500.0,0.00013698,2]
[342670076,1732033231609,-437.88092191,0.00013698,2]
[342670077,1732033231635,-500.0,0.00013698,2]
[342670078,1732033231784,-500.0,0.00013698,2]
[342670079,1732033231809,-500.0,0.00013698,2]
[342670080,1732033231835,-500.0,0.00013698,2]
[342670081,1732033231861,-500.0,0.00013698,2]
[342670082,1732033231885,-500.0,0.00013698,2]
[342670083,1732033231909,-500.0,0.00013698,2]
[342670084,1732033231934,-500.0,0.00013698,2]
[342670085,1732033231959,-500.0,0.00013698,2]
[342670086,1732033231981,-500.0,0.00013698,2]
[342670087,1732033232004,-500.0,0.00013698,2]
[342670088,1732033232029,-500.0,0.00013698,2]
[342670089,1732033232052,-500.0,0.00013698,2]
[342670090,1732033232078,-500.0,0.00013698,2]
[342670091,1732033232103,-500.0,0.00013698,2]
[342670092,1732033232129,-500.0,0.00013698,2]
[342670093,1732033232154,-500.0,0.00013698,2]
[342670094,1732033232176,-500.0,0.00013698,2]
[342670095,1732033232201,-500.0,0.00013698,2]
[342670096,1732033232224,-500.0,0.00013698,2]
[342670097,1732033232248,-500.0,0.00013698,2]
[342670098,1732033232271,-350.0,0.00013698,2]
[342670099,1732033232296,-500.0,0.00013698,2]
[342670100,1732033232318,-500.0,0.00013698,2]
[342670101,1732033232343,-500.0,0.00013698,2]
[342670102,1732033232368,-500.0,0.00013698,2]
[342670103,1732033232397,-500.0,0.00013698,2]
[342670104,1732033232420,-500.0,0.00013698,2]
[342670105,1732033232445,-500.0,0.00013698,2]
[342670106,1732033232470,-500.0,0.00013698,2]
[342670107,1732033232493,-500.0,0.00013698,2]
[342670108,1732033232515,-500.0,0.00013698,2]
[342670109,1732033232538,-500.0,0.00013698,2]
[342670110,1732033232560,-500.0,0.00013698,2]
[342670111,1732033232582,-500.0,0.00013698,2]
[342670112,1732033232603,-500.0,0.00013698,2]
[342670113,1732033232626,-500.0,0.00013698,2]
[342670114,1732033232650,-500.0,0.00013698,2]
[342670115,1732033232677,-500.0,0.00013698,2]
[342670116,1732033232701,-500.0,0.00013698,2]
[342670117,1732033232727,-500.0,0.00013698,2]
[342670118,1732033232760,-500.0,0.00013698,2]
[342670119,1732033232792,-319.52808948,0.00013698,2]
[342670120,1732033232817,-500.0,0.00013698,2]
[342670121,1732033232844,-500.0,0.00013698,2]
[342670122,1732033232869,-500.0,0.00013698,2]
[342670123,1732033232894,-500.0,0.00013698,2]
[342670124,1732033232918,-500.0,0.00013698,2]
[342670125,1732033232943,-500.0,0.00013698,2]
[342670126,1732033232968,-500.0,0.00013698,2]
[342670127,1732033232993,-500.0,0.00013698,2]
[342670128,1732033233018,-500.0,0.00013698,2]
[342670129,1732033233047,-210.03545162,0.00013698,2]
[342670130,1732033233077,-500.0,0.00013698,2]
[342670131,1732033233108,-500.0,0.00013698,2]
[342670132,1732033233133,-617.3675485,0.00013698,2]
[342670133,1732033233159,-500.0,0.00013698,2]
[342670134,1732033233184,-500.0,0.00013698,2]
[342670135,1732033233211,-500.0,0.00013698,2]
[342670136,1732033233236,-500.0,0.00013698,2]
[342670137,1732033233262,-500.0,0.00013698,2]
[342670138,1732033233288,-500.0,0.00013698,2]
[342670139,1732033233314,-500.0,0.00013698,2]
[342670140,1732033233338,-403.50899468,0.00013698,2]
[342670141,1732033233363,-250.0,0.00013698,2]
[342670142,1732033233387,-413.38995126,0.00013698,2]
[342670143,1732033233412,-500.0,0.00013698,2]
[342670144,1732033233437,-398.11850364,0.00013698,2]
[342670145,1732033233461,-500.0,0.00013698,2]
[342670146,1732033233485,-500.0,0.00013698,2]
[342670147,1732033233509,-500.0,0.00013698,2]
[342670148,1732033233534,-500.0,0.00013698,2]
[342670149,1732033233558,-500.0,0.00013698,2]
[342670150,1732033233581,-300.00000001,0.00013698,2]
[342670151,1732033233605,-500.0,0.00013698,2]
[342670152,1732033233628,-500.0,0.00013698,2]
[342670153,1732033233653,-500.0,0.00013698,2]
[342670154,1732033233676,-500.0,0.00013698,2]
[342670155,1732033233700,-650.0,0.00013698,2]
[342670156,1732033233729,-500.0,0.00013698,2]
[342670157,1732033233754,-500.0,0.00013698,2]
[342670158,1732033233779,-500.0,0.00013698,2]
[342670159,1732033233803,-500.0,0.00013698,2]
[342670160,1732033233825,-227.54041488,0.00013698,2]
[342670161,1732033233852,-186.52336581,0.00013698,2]
[342670162,1732033233876,-203.76829393,0.00013698,2]
[342670163,1732033233899,-886.240787,0.00013699,2]
[342670164,1732033233922,-5603.587916,0.00013699,2]
[342670165,1732033234072,-169.74178061,0.00013699,2]
[342670166,1732033234097,-500.0,0.00013699,2]
[342670167,1732033234123,-500.0,0.00013699,2]
[342670168,1732033234148,-500.0,0.00013699,2]
[342670169,1732033234172,-500.0,0.00013699,2]
[342670170,1732033234196,-500.0,0.00013699,2]
[342670171,1732033234220,-325.91229637,0.00013699,2]
[342670172,1732033234245,-500.0,0.00013699,2]
[342670173,1732033234268,-500.0,0.00013699,2]
[342670174,1732033234296,-500.0,0.00013699,2]
[342670175,1732033234320,-500.0,0.00013699,2]
[342670176,1732033234344,-500.0,0.00013699,2]
[342670177,1732033234368,-650.0,0.00013699,2]
[342670178,1732033234391,-500.0,0.00013699,2]
[342670179,1732033234414,-500.0,0.00013699,2]
[342670180,1732033234439,-500.0,0.00013699,2]
[342670181,1732033234463,-500.0,0.00013699,2]
[342670182,1732033234487,-500.0,0.00013699,2]
[342670183,1732033234510,-500.0,0.00013699,2]
[342670184,1732033234538,-500.0,0.00013699,2]
[342670185,1732033234562,-500.0,0.00013699,2]
[342670186,1732033234585,-500.0,0.00013699,2]
[342670187,1732033234608,-350.0,0.00013699,2]
[342670188,1732033234634,-500.0,0.00013699,2]
[342670189,1732033234658,-500.0,0.00013699,2]
[342670190,1732033234680,-500.0,0.00013699,2]
[342670191,1732033234703,-500.0,0.00013699,2]
[342670192,1732033234726,-500.0,0.00013699,2]
[342670193,1732033234749,-500.0,0.00013699,2]
[342670194,1732033234772,-500.0,0.00013699,2]
[342670195,1732033234797,-500.0,0.00013699,2]
[342670196,1732033234820,-500.0,0.00013699,2]
[342670197,1732033234843,-298.96924627,0.00013699,2]
[342670198,1732033234867,-500.0,0.00013699,2]
[342670199,1732033234892,-500.0,0.00013699,2]
[342670200,1732033234915,-500.0,0.00013699,2]
[342670201,1732033234940,-500.0,0.00013699,2]
[342670202,1732033234965,-500.0,0.00013699,2]
[342670203,1732033234989,-500.0,0.00013699,2]
[342670204,1732033235010,-500.0,0.000137,2]
[342670205,1732033235035,-500.0,0.000137,2]
[342670206,1732033235056,-417.58346351,0.000137,2]
[342670207,1732033235082,-500.0,0.000137,2]
[342670208,1732033235106,-504.38002127,0.000137,2]
[342670209,1732033235130,-500.0,0.000137,2]
[342670210,1732033235153,-504.79200493,0.000137,2]
[342670211,1732033235176,-1152.0,0.00013951,2]
[342670212,1732033235201,-1152.0,0.00013951,2]
[342670213,1732033235225,-400.0,0.00013973,2]
[342670214,1732033235248,-354.67179388,0.00014139,2]
[342670215,1732033235272,-452.77538759,0.00014221,2]
[342670216,1732033235296,-516.58048574,0.00014221,2]
[342670217,1732033235319,-1000.85904282,0.00014221,2]
[342670218,1732033235342,-1000.0,0.00014221,2]
[342670219,1732033235367,-1000.0,0.00014221,2]
[342670220,1732033235389,-1000.0,0.00014248,2]
[342670221,1732033235413,-1000.0,0.00014248,2]
[342670222,1732033235438,-500.0,0.00014248,2]
[342670223,1732033235472,-1008.56784563,0.00014248,2]
[342670224,1732033235496,-1500.0,0.0001455,2]
[342670225,1732033235519,-1500.0,0.0001455,2]
[342670226,1732033235545,-1500.0,0.00015222,2]
[342670227,1732033235569,-1500.0,0.00015222,2]
[342670228,1732033235591,-217.48747195,0.0001525,2]
[342670229,1732033235613,-502.96286552,0.0001525,2]
[342670230,1732033235636,-1245.0,0.00015346,2]
[342670231,1732033235660,-189.0,0.00015346,2]
[342670232,1732033235685,-3979.62892574,0.00015608,2]
[342670233,1732033235711,-2000.0,0.00015847,2]
[342670234,1732033235739,-973.95276058,0.00015847,2]
[342670240,1732033335957,7744.54193225,0.00015541,2]
[342670243,1732033391383,287856.935,0.00025999,60]
[342670244,1732033511035,542.00922101,0.00015847,2]
[342670246,1732033577458,7744.5419322,0.000159,2]
[342670247,1732033595051,400.0,0.00013973,2]
[342670253,1732033696974,3462.04466678,0.00013,2]
[342670255,1732033725592,6419.81278874,0.00021,60]
[342670259,1732033733397,31393.40702275,0.000109,2]
[342670473,1732033839053,-300.0,0.00010899,2]
[342670475,1732033839064,-233.71420801,0.00010899,2]
[342670486,1732033839163,-66.28579199,0.00010899,2]
[342670488,1732033839173,-591.79130627,0.000109,2]
[342670490,1732033839183,-13032.87991916,0.000109,2]
[342670496,1732033839279,-5092.52158144,0.000109,2]
[342670639,1732033840709,-1404.76368885,0.000109,2]
[342670762,1732033843672,-2856.4243029,0.000109,2]
[342670808,1732033846698,-837.50978639,0.00010859,2]
[342670824,1732033846822,-68336.74198896,0.000109,2]
[342670827,1732033846834,-457.78,0.00010959,2]
[342670829,1732033846843,-1110.26,0.00010959,2]
[342670831,1732033846853,-300.0,0.00011978,2]
[342670833,1732033846862,-300.0,0.00011989,2]
[342670834,1732033846871,-500.0,0.00013698,2]
[342670837,1732033846882,-500.0,0.00013698,2]
[342670839,1732033846891,-500.0,0.00013698,2]
[342670841,1732033846901,-500.0,0.00013698,2]
[342670843,1732033846911,-500.0,0.00013698,2]
[342670845,1732033846920,-500.0,0.00013698,2]
[342670847,1732033846929,-500.0,0.00013698,2]
[342670849,1732033846938,-500.0,0.00013698,2]
[342670851,1732033846947,-500.0,0.00013698,2]
[342670853,1732033846957,-189.07607313,0.00013698,2]
[342670855,1732033846966,-500.0,0.00013698,2]
[342670857,1732033846975,-513.27180196,0.00013698,2]
[342670859,1732033846983,-500.0,0.00013699,2]
[342670861,1732033846993,-500.0,0.00013699,2]
[342670863,1732033847002,-500.0,0.00013699,2]
[342670865,1732033847010,-362.48815426,0.00013699,2]
[342670867,1732033847019,-7744.5419323,0.00016343,2]
[342670869,1732033847028,-501.29771105,0.00016437,2]
[342670871,1732033847037,-500.0,0.00016438,2]
[342670873,1732033847047,-500.0,0.00016438,2]
[342670875,1732033847058,-500.0,0.00016438,2]
[342670877,1732033847071,-500.0,0.00016438,2]
[342670879,1732033847085,-500.0,0.00016438,2]
[342670881,1732033847095,-217.63723011,0.00016438,2]
[342670883,1732033847105,-500.0,0.00016438,2]
[342670885,1732033847115,-500.0,0.00016438,2]
[342670887,1732033847124,-500.0,0.00016438,2]
[342670889,1732033847133,-443.120393,0.00016559,2]
[342670891,1732033847142,-270.22968485,0.00017284,2]
[342670893,1732033847152,-273.470072,0.000174,2]
[342670895,1732033847163,-250.0,0.00017458,2]
[342670897,1732033847176,-7015.625,0.00018,2]
[342670898,1732033847186,-150.112233,0.000183,2]
[342670900,1732033847196,-159.27829042,0.00018803,2]
[342670902,1732033847205,-24900.0,0.00018804,2]
[342670904,1732033847215,-2487.26807864,0.00018978,2]
[342670907,1732033847224,-161.21016,0.00019178,2]
[342670909,1732033847234,-150.112233,0.000193,2]
[342670911,1732033847243,-2126.61396,0.00019359,2]
[342670913,1732033847252,-2126.61396,0.00020044,2]
[342670914,1732033847261,-165.383182,0.00020165,2]
[342670917,1732033847273,-150.112233,0.000202,4]
[342670919,1732033847285,-2487.26807858,0.00020359,2]
[342670920,1732033847294,-400.0,0.00020447,2]
[342670922,1732033847304,-2126.61396,0.00020729,2]
[342670925,1732033847315,-151.12248987,0.00021011,2]
[342670927,1732033847324,-150.112233,0.000211,3]
[342670928,1732033847335,-2487.26807858,0.00021741,2]
[342670931,1732033847344,-1603.81,0.00022,2]
[342670932,1732033847357,-272.0,0.00022,2]
[342670934,1732033847366,-501.92632851,0.00022033,2]
[342670937,1732033847376,-500.0,0.00022033,2]
[342670939,1732033847385,-500.92778353,0.00022033,2]
[342670941,1732033847395,-150.112233,0.000221,5]
[342670943,1732033847404,-272.0,0.00022192,2]
[342670945,1732033847414,-154.4165448,0.00022192,2]
[342670946,1732033847423,-161.7539085,0.00022192,2]
[342670948,1732033847432,-1000.0,0.00022581,2]
[342670951,1732033847441,-2385.0,0.00022612,2]
[342670953,1732033847450,-549.70965328,0.000229,2]
[342670955,1732033847460,-11133.11259267,0.000229,2]
[342670957,1732033847469,-160.5375134,0.00022973,2]
[342670958,1732033847478,-467.81359663,0.00022973,2]
[342670961,1732033847488,-500.0,0.00022973,2]
[342670963,1732033847499,-500.0,0.00022973,2]
[342670964,1732033847508,-500.0,0.00022973,2]
[342670966,1732033847517,-500.0,0.00022973,2]
[342670968,1732033847526,-201.96989417,0.00022973,2]
[342670970,1732033847536,-500.0,0.00022973,2]
[342670972,1732033847545,-500.0,0.00022973,2]
[342670974,1732033847557,-500.0,0.00022973,2]
[342670976,1732033847567,-13706.38425083,0.00022997,2]
[342670978,1732033847577,-156.61465191,0.00022999,2]
[342670980,1732033847588,-12208.13318954,0.00022999,2]
[342670982,1732033847597,-73523.46880016,0.00023,2]
[342670984,1732033847606,-1840.96497188,0.00023,2]
[342670986,1732033847616,-41209.4810403,0.00023,15]
[342671215,1732034082679,-500.0,0.00021917,7]
[342671216,1732034082701,-500.74045719,0.00021917,7]
[342671217,1732034082722,-500.0,0.00021917,7]
[342671218,1732034082744,-500.0,0.00021917,7]
[342671219,1732034082767,-672.27,0.00021917,7]
[342671220,1732034082789,-500.0,0.00021917,7]
[342671221,1732034082809,-500.0,0.00021917,7]
[342671222,1732034082830,-572.99640988,0.00021917,7]
[342671223,1732034082849,-500.0,0.00021917,7]
[342671224,1732034082870,-500.0,0.00021917,7]
[342671225,1732034082891,-500.0,0.00021917,7]
[342671226,1732034082911,-500.0,0.00021917,7]
[342671227,1732034082932,-500.0,0.00021917,7]
[342671228,1732034082953,-875.09,0.00021917,7]
[342671229,1732034082974,-500.0,0.00021917,7]
[342671230,1732034082995,-500.0,0.00021917,7]
[342671231,1732034083018,-500.0,0.00021917,7]
[342671232,1732034083039,-500.0,0.00021917,7]
[342671233,1732034083059,-500.0,0.00021917,7]
[342671234,1732034083082,-500.0,0.00021917,7]
[342671235,1732034083103,-875.09,0.00021917,7]
[342671236,1732034083125,-875.09,0.00021917,7]
[342671237,1732034083147,-875.09,0.00021917,7]
[342671238,1732034083168,-875.09,0.00021917,7]
[342671239,1732034083190,-875.09,0.00021917,7]
[342671240,1732034083212,-875.09,0.00021917,7]
[342671241,1732034083233,-500.0,0.00021917,7]
[342671242,1732034083258,-875.09,0.00021917,7]
[342671243,1732034083279,-500.0,0.00021917,7]
[342671244,1732034083301,-500.0,0.00021917,7]
[342671245,1732034083322,-525.82269875,0.00021917,7]
[342671246,1732034083344,-500.0,0.00021917,7]
[342671247,1732034083369,-500.0,0.00021917,7]
[342671248,1732034083390,-500.0,0.00021917,7]
[342671249,1732034083412,-500.0,0.00021917,7]
[342671250,1732034083515,-500.0,0.00021917,7]
[342671251,1732034083537,-500.0,0.00021917,7]
[342671252,1732034083559,-500.0,0.00021917,7]
[342671253,1732034083581,-500.0,0.00021917,7]
[342671254,1732034083603,-500.0,0.00021917,7]
[342671255,1732034083624,-500.0,0.00021917,7]
[342671256,1732034083647,-500.0,0.00021917,7]
[342671257,1732034083668,-500.0,0.00021917,7]
[342671258,1732034083690,-1475.75,0.00021917,7]
[342671259,1732034083711,-500.0,0.00021917,7]
[342671260,1732034083732,-500.0,0.00021917,7]
[342671261,1732034083756,-500.0,0.00021917,7]
[342671262,1732034083777,-500.0,0.00021917,7]
[342671263,1732034083799,-500.0,0.00021917,7]
[342671264,1732034083822,-500.0,0.00021917,7]
[342671265,1732034083842,-500.0,0.00021917,7]
[342671266,1732034083863,-500.0,0.00021917,7]
[342671267,1732034083886,-500.0,0.00021917,7]
[342671268,1732034083907,-500.0,0.00021917,7]
[342671269,1732034083929,-500.0,0.00021917,7]
[342671270,1732034083951,-500.0,0.00021917,7]
[342671271,1732034083973,-500.0,0.00021917,7]
[342671272,1732034083994,-500.0,0.00021917,7]
[342671273,1732034084016,-500.0,0.00021917,7]
[342671274,1732034084037,-500.0,0.00021917,7]
[342671275,1732034084058,-500.0,0.00021917,7]
[342671276,1732034084082,-5251.70043418,0.00021917,7]
[342671277,1732034103225,499.999999,0.00019911,30]
[342671478,1732035032515,-400.0,0.00013695,2]
[342671480,1732035032524,-100.0,0.00013973,2]
[342671482,1732035032541,-300.0,0.00013973,2]
[342671485,1732035032555,-95.29080982,0.00017543,2]
[342671624,1732035037935,-281.70919018,0.00017543,2]
[342671625,1732035037946,-122.47494482,0.0001772,2]
[342671628,1732035037989,-354.49549515,0.0001772,2]
[342671629,1732035038000,-203.943282,0.00017858,2]
[342671630,1732035038010,-7015.625,0.00018,2]
[342671631,1732035038020,-300.0,0.00018423,2]
[342671632,1732035038029,-300.0,0.00018423,2]
[342671633,1732035038039,-4684.39249739,0.00018424,2]
[342671790,1732035042853,-3916.19035309,0.00018,2]
[342671797,1732035042909,-2044.4,0.00018,2]
[342671799,1732035042921,-1055.03464691,0.00018,2]
[342671801,1732035042931,-7220.71535309,0.00018424,2]
[342671882,1732035045835,-514.67247147,0.00018424,2]
[342672026,1732036176600,173.228,0.0002574,60]
[342672074,1732036238141,-400.0,0.00013422,2]
[342672076,1732036238152,-400.0,0.00013973,2]
[342672078,1732036238167,-7015.625,0.00018,2]
[342672080,1732036238176,-162.1006256,0.00018307,2]
[342672082,1732036238185,-1027.05198056,0.00018307,2]
[342672085,1732036238201,-146.81250644,0.00018307,2]
[342672087,1732036238211,-253.01469219,0.00018352,2]
[342672089,1732036238222,-46.98530781,0.00018352,2]
[342672091,1732036238231,-250.0,0.00018353,2]
[342672093,1732036238241,-692.73716,0.00018353,2]
[342672095,1732036238250,-24900.0,0.00018883,2]
[342672097,1732036238260,-1173.864487,0.00018992,2]
[342672099,1732036238269,-161.21016,0.00019178,2]
[342672101,1732036238279,-1173.864487,0.00019677,2]
[342672103,1732036238288,-400.0,0.00020447,2]
[342672105,1732036238298,-57035.48995959,0.00021,2]
[342672109,1732036238322,-4174.63487,0.00021,2]
[342672563,1732036242687,-4077.68806629,0.00021,2]
[342672566,1732036242699,-11687.24996082,0.00021,2]
[342672611,1732036243163,-5647.21577413,0.00021,2]
[342672614,1732036243175,-592.09198153,0.00021,2]
[342672626,1732036243275,-2843.78495284,0.00021,2]
[342672851,1732036246134,-24900.0,0.00018307,2]
[342672852,1732036246143,-403767.77330768,0.00021,2]
[342672913,1732037435324,-928.85,0.00010791,2]
[342672914,1732037435389,-1927.5743029,0.00010791,2]
[342672915,1732037435401,-2856.4243029,0.000109,2]
[342672916,1732037435410,-400.0,0.00013973,2]
[342672917,1732037435420,-7015.625,0.00018,2]
[342672918,1732037435431,-1164.2610527,0.0002,2]
[342672919,1732037435441,-400.0,0.00020447,2]
[342672920,1732037435452,-24900.0,0.00020479,2]
[342672921,1732037435461,-500.4397852,0.00020814,2]
[342672922,1732037435474,-346.36858,0.00020914,2]
[342672923,1732037435483,-118841.10745343,0.00021,2]
[342672980,1732037438236,-9092.1,0.00021,2]
[342672982,1732037438417,-466.6991998,0.00021,2]
[342672983,1732037438430,-4632.15,0.00021,2]
[342673005,1732037440035,-28035.59890757,0.00021,2]
[342673006,1732037440097,-27828.60000003,0.00021,2]
[342673007,1732037440109,-17450.87065068,0.00021,2]
[342673015,1732037443186,-356.12202014,0.00020908,2]
[342673016,1732037443196,-3126.2532839,0.00021,2]
[342673017,1732037443209,-94083.31389671,0.00021,2]
[342673018,1732037443220,-71843.694667,0.00021,2]
[342673019,1732037443230,-1114.55,0.00021119,2]
[342673020,1732037443239,-4998.26551378,0.000218,2]
[342673021,1732037443249,-531.64709253,0.00021817,2]
[342673022,1732037443259,-925.21,0.00021907,3]
[342673023,1732037443268,-462.61,0.00021907,3]
[342673024,1732037443278,-500.0,0.00021913,2]
[342673025,1732037443287,-468.6263589,0.00021913,2]
[342673026,1732037443298,-500.0,0.00021913,2]
[342673027,1732037443308,-592.97448915,0.00021913,2]
[342673028,1732037443318,-500.0,0.00021913,2]
[342673029,1732037443327,-500.0,0.00021913,2]
[342673030,1732037443339,-503.14002875,0.00021913,2]
[342673031,1732037443349,-500.0,0.00021913,2]
[342673032,1732037443359,-233.51676398,0.00021913,2]
[342673033,1732037443369,-500.0,0.00021913,2]
[342673034,1732037443379,-500.0,0.00021913,2]
[342673035,1732037443390,-500.0,0.00021913,2]
[342673036,1732037443404,-500.0,0.00021913,2]
[342673037,1732037443415,-500.0,0.00021913,2]
[342673038,1732037443424,-500.0,0.00021913,2]
[342673039,1732037443435,-486.55032994,0.00021913,2]
[342673040,1732037443445,-383.69346011,0.00021913,2]
[342673042,1732037443454,-500.0,0.00021913,2]
[342673044,1732037443464,-351.79999218,0.00021913,2]
[342673045,1732037443475,-500.0,0.00021913,2]
[342673047,1732037443485,-500.0,0.00021913,2]
[342673049,1732037443494,-500.0,0.00021913,2]
[342673051,1732037443504,-570.41839546,0.00021913,2]
[342673053,1732037443514,-500.0,0.00021913,2]
[342673055,1732037443524,-500.0,0.00021913,2]
[342673057,1732037443534,-500.0,0.00021913,2]